[Event "Snabbschacks-SM 2025"]
[Site "Norrköping, Sweden"]
[Date "2025.09.28"]
[Round "9.9"]
[White "Malmsten, Hans"]
[Black "Olsson, Simon"]
[Result "0-1"]
[TimeControl "25 min + 10 sec/move"]
[WhiteElo "2024"]
[BlackElo "2068"]

1. d4 {[%clk 00:25:17]} {[%emt 00:00:02]} Nf6 {[%clk 00:25:19]} {[%emt
00:00:02]} 2. g3 {[%clk 00:25:24]} {[%emt 00:00:02]} d5 {[%clk 00:23:20]}
{[%emt 00:02:10]} 3. Bg2 {[%clk 00:25:30]} {[%emt 00:00:04]} Bf5 {[%clk
00:22:05]} {[%emt 00:01:25]} 4. c4 {[%clk 00:25:05]} {[%emt 00:00:36]} c6
{[%clk 00:22:13]} {[%emt 00:00:02]} 5. Qb3 {[%clk 00:23:48]} {[%emt 00:01:26]}
Qb6 {[%clk 00:20:48]} {[%emt 00:01:35]} 6. Nc3 {[%clk 00:21:05]} {[%emt
00:02:52]} e6 {[%clk 00:19:00]} {[%emt 00:01:58]} 7. Nf3 {[%clk 00:20:13]}
{[%emt 00:01:02]} Nbd7 {[%clk 00:18:47]} {[%emt 00:00:25]} 8. Qxb6 {[%clk
00:19:39]} {[%emt 00:00:43]} axb6 {[%clk 00:18:30]} {[%emt 00:00:27]} 9. Nh4
{[%clk 00:18:58]} {[%emt 00:00:50]} dxc4 {[%clk 00:14:59]} {[%emt 00:03:42]} 10.
e4 {[%clk 00:19:05]} {[%emt 00:00:03]} Bg6 {[%clk 00:15:08]} {[%emt 00:00:02]}
11. O-O {[%clk 00:18:39]} {[%emt 00:00:35]} b5 {[%clk 00:11:05]} {[%emt
00:04:14]} 12. d5 {[%clk 00:16:36]} {[%emt 00:02:12]} e5 {[%clk 00:09:35]}
{[%emt 00:01:41]} 13. dxc6 {[%clk 00:13:51]} {[%emt 00:02:54]} bxc6 {[%clk
00:09:42]} {[%emt 00:00:04]} 14. Rd1 {[%clk 00:12:21]} {[%emt 00:01:40]} Bc5
{[%clk 00:08:10]} {[%emt 00:01:43]} 15. Bh3 {[%clk 00:11:34]} {[%emt 00:00:56]}
b4 {[%clk 00:07:18]} {[%emt 00:01:02]} 16. Nxg6 {[%clk 00:11:13]} {[%emt
00:00:31]} hxg6 {[%clk 00:07:13]} {[%emt 00:00:15]} 17. Bxd7+ {[%clk 00:11:20]}
{[%emt 00:00:03]} Nxd7 {[%clk 00:07:21]} {[%emt 00:00:02]} 18. Nb1 {[%clk
00:08:31]} {[%emt 00:02:58]} Nf6 {[%clk 00:07:30]} {[%emt 00:00:02]} 19. Nd2
{[%clk 00:07:58]} {[%emt 00:00:44]} Ng4 {[%clk 00:07:03]} {[%emt 00:00:37]} 20.
Nxc4 {[%clk 00:06:46]} {[%emt 00:01:22]} Nxf2 {[%clk 00:05:41]} {[%emt
00:01:31]} 21. Rf1 {[%clk 00:06:25]} {[%emt 00:00:31]} Nxe4+ {[%clk 00:05:46]}
{[%emt 00:00:05]} 22. Kg2 {[%clk 00:06:29]} {[%emt 00:00:05]} f6 {[%clk
00:05:25]} {[%emt 00:00:32]} 23. Re1 {[%clk 00:05:55]} {[%emt 00:00:44]} Nf2
{[%clk 00:02:28]} {[%emt 00:03:07]} 24. Nxe5 {[%clk 00:05:37]} {[%emt
00:00:28]} fxe5 {[%clk 00:02:37]} {[%emt 00:00:01]} 25. Rxe5+ {[%clk 00:05:46]}
{[%emt 00:00:01]} Kd7 {[%clk 00:02:44]} {[%emt 00:00:03]} 26. Rxc5 {[%clk
00:05:51]} {[%emt 00:00:04]} Nd3 {[%clk 00:02:52]} {[%emt 00:00:03]} 27. Rc4
{[%clk 00:04:28]} {[%emt 00:01:33]} Nxc1 {[%clk 00:02:06]} {[%emt 00:00:57]} 28.
Rcxc1 {[%clk 00:04:16]} {[%emt 00:00:21]} Rh5 {[%clk 00:02:05]} {[%emt
00:00:10]} 29. Rc4 {[%clk 00:03:38]} {[%emt 00:00:48]} c5 {[%clk 00:02:06]}
{[%emt 00:00:09]} 30. Rg4 {[%clk 00:03:03]} {[%emt 00:00:46]} Rd5 {[%clk
00:02:06]} {[%emt 00:00:11]} 31. Rxg6 {[%clk 00:03:01]} {[%emt 00:00:12]} Rd2+
{[%clk 00:02:15]} {[%emt 00:00:01]} 32. Kh3 {[%clk 00:02:56]} {[%emt 00:00:15]}
Rxb2 {[%clk 00:01:57]} {[%emt 00:00:28]} 33. Rxg7+ {[%clk 00:03:04]} {[%emt
00:00:02]} Kc6 {[%clk 00:02:07]} 34. Kg4 {[%clk 00:00:44]} {[%emt 00:02:30]}
Rxh2 {[%clk 00:02:06]} {[%emt 00:00:11]} 35. Rg5 {[%clk 00:00:37]} {[%emt
00:00:17]} Raxa2 {[%clk 00:02:08]} {[%emt 00:00:07]} 36. Rf1 {[%clk 00:00:38]}
{[%emt 00:00:10]} b3 {[%clk 00:01:32]} {[%emt 00:00:47]} 37. Rf6+ {[%clk
00:00:41]} {[%emt 00:00:06]} Kb5 {[%clk 00:01:41]} {[%emt 00:00:01]} 38. Rf8
{[%clk 00:00:50]} b2 {[%clk 00:01:10]} {[%emt 00:00:41]} 39. Rc8 {[%clk
00:00:55]} {[%emt 00:00:05]} Rc2 {[%clk 00:00:52]} {[%emt 00:00:29]} 40. Kh5
{[%clk 00:00:40]} {[%emt 00:00:24]} Ra6 {[%clk 00:00:51]} {[%emt 00:00:11]} 41.
Rg6 {[%clk 00:00:18]} {[%emt 00:00:32]} Rxg6 {[%clk 00:00:44]} {[%emt
00:00:17]} 42. Kxg6 {[%clk 00:00:27]} {[%emt 00:00:01]} Kc4 {[%clk 00:00:52]}
{[%emt 00:00:02]} 43. Rb8 {[%clk 00:00:33]} {[%emt 00:00:03]} Kc3 {[%clk
00:01:01]} {[%emt 00:00:01]} 44. g4 {[%clk 00:00:43]} {[%emt 00:00:02]} Rc1
{[%clk 00:01:09]} {[%emt 00:00:02]} 0-1

[Event "Snabbschacks-SM 2025"]
[Site "Norrköping, Sweden"]
[Date "2025.09.28"]
[Round "6.8"]
[White "Jonsson, Krister"]
[Black "Nygren, Kim"]
[Result "1-0"]
[TimeControl "25 min + 10 sec/move"]
[BlackTitle "CM"]
[WhiteElo "2022"]
[BlackElo "2173"]

1. Nf3 {[%clk 00:25:15]} {[%emt 00:00:04]} c5 {[%clk 00:25:15]} {[%emt
00:00:05]} 2. c4 {[%clk 00:25:19]} {[%emt 00:00:05]} Nc6 {[%clk 00:25:21]}
{[%emt 00:00:05]} 3. g3 {[%clk 00:25:18]} {[%emt 00:00:11]} e5 {[%clk
00:25:27]} {[%emt 00:00:04]} 4. Nc3 {[%clk 00:25:14]} {[%emt 00:00:15]} Be7
{[%clk 00:24:18]} {[%emt 00:01:19]} 5. Bg2 {[%clk 00:25:19]} {[%emt 00:00:04]}
g5 {[%clk 00:24:24]} {[%emt 00:00:04]} 6. d3 {[%clk 00:22:37]} {[%emt
00:02:53]} d6 {[%clk 00:24:16]} {[%emt 00:00:17]} 7. Nd2 {[%clk 00:19:52]}
{[%emt 00:02:54]} Be6 {[%clk 00:24:09]} {[%emt 00:00:17]} 8. Nf1 {[%clk
00:19:57]} {[%emt 00:00:05]} h5 {[%clk 00:21:42]} {[%emt 00:02:37]} 9. Ne3
{[%clk 00:19:47]} {[%emt 00:00:20]} h4 {[%clk 00:21:42]} {[%emt 00:00:11]} 10.
Qa4 {[%clk 00:17:44]} {[%emt 00:02:12]} Bd7 {[%clk 00:20:15]} {[%emt 00:01:37]}
11. Qd1 {[%clk 00:16:09]} {[%emt 00:01:45]} h3 {[%clk 00:19:08]} {[%emt
00:01:18]} 12. Be4 {[%clk 00:13:51]} {[%emt 00:02:27]} Nh6 {[%clk 00:18:31]}
{[%emt 00:00:47]} 13. Bd5 {[%clk 00:12:08]} {[%emt 00:01:53]} f5 {[%clk
00:18:09]} {[%emt 00:00:32]} 14. Bd2 {[%clk 00:11:26]} {[%emt 00:00:53]} f4
{[%clk 00:17:25]} {[%emt 00:00:54]} 15. Nc2 {[%clk 00:11:11]} {[%emt 00:00:25]}
Bf6 {[%clk 00:14:21]} {[%emt 00:03:13]} 16. e4 {[%clk 00:09:06]} {[%emt
00:02:15]} Bg4 {[%clk 00:13:56]} {[%emt 00:00:35]} 17. f3 {[%clk 00:09:14]}
{[%emt 00:00:03]} Bh5 {[%clk 00:12:59]} {[%emt 00:01:07]} 18. g4 {[%clk
00:09:00]} Bf7 {[%clk 00:11:25]} {[%emt 00:02:07]} 19. Qe2 {[%clk 00:08:41]}
Nd4 {[%clk 00:11:20]} {[%emt 00:00:44]} 20. Nxd4 {[%clk 00:08:40]} exd4 {[%clk
00:11:28]} {[%emt 00:00:14]} 21. Bxf7+ {[%clk 00:08:46]} Nxf7 {[%clk 00:11:35]}
{[%emt 00:00:07]} 22. Nd5 {[%clk 00:08:53]} Ne5 {[%clk 00:11:38]} {[%emt
00:00:09]} 23. Kf2 {[%clk 00:08:02]} Bg7 {[%clk 00:10:49]} {[%emt 00:02:01]} 24.
b4 {[%clk 00:07:47]} b6 {[%clk 00:10:41]} {[%emt 00:00:43]} 25. a4 {[%clk
00:07:45]} cxb4 {[%clk 00:09:39]} {[%emt 00:01:23]} 26. Bxb4 {[%clk 00:07:47]}
a5 {[%clk 00:06:36]} {[%emt 00:03:22]} 27. Ba3 {[%clk 00:07:29]} Kf7 {[%clk
00:05:51]} {[%emt 00:01:23]} 28. Rab1 {[%clk 00:07:25]} Ra6 {[%clk 00:06:00]}
{[%emt 00:00:15]} 29. Rb5 {[%clk 00:07:03]} Rh4 {[%clk 00:05:43]} {[%emt
00:00:58]} 30. Rg1 {[%clk 00:05:18]} Bf8 {[%clk 00:05:22]} {[%emt 00:02:27]} 31.
Qc2 {[%clk 00:05:09]} Be7 {[%clk 00:04:59]} {[%emt 00:00:52]} 32. Ke2 {[%clk
00:05:07]} Qd7 {[%clk 00:04:36]} {[%emt 00:00:45]} 33. Qd1 {[%clk 00:03:34]}
Bd8 {[%clk 00:04:31]} {[%emt 00:01:58]} 34. Bb2 {[%clk 00:03:35]} Nc6 {[%clk
00:03:37]} {[%emt 00:01:12]} 35. Qb3 {[%clk 00:03:39]} Rh6 {[%clk 00:03:02]}
{[%emt 00:00:52]} 36. Nxb6 {[%clk 00:03:31]} Bxb6 {[%clk 00:02:56]} {[%emt
00:00:34]} 37. c5+ {[%clk 00:03:16]} Qe6 {[%clk 00:02:27]} {[%emt 00:01:03]} 38.
Qxe6+ {[%clk 00:03:17]} Rxe6 {[%clk 00:01:50]} {[%emt 00:00:57]} 39. cxb6
{[%clk 00:03:24]} Re5 {[%clk 00:01:06]} {[%emt 00:00:57]} 40. Rc1 {[%clk
00:01:42]} Rxb5 {[%clk 00:01:14]} {[%emt 00:01:53]} 41. axb5 {[%clk 00:01:51]}
Rxb6 {[%clk 00:01:24]} {[%emt 00:00:02]} 42. Rxc6 {[%clk 00:01:52]} Rxb5 {[%clk
00:01:33]} {[%emt 00:00:09]} 43. Bxd4 {[%clk 00:01:53]} Rb1 {[%clk 00:01:41]}
{[%emt 00:00:12]} 44. Rc7+ {[%clk 00:01:14]} Ke6 {[%clk 00:01:50]} {[%emt
00:00:50]} 45. Rh7 {[%clk 00:01:21]} a4 {[%clk 00:01:55]} {[%emt 00:00:07]} 46.
Rxh3 {[%clk 00:01:27]} a3 {[%clk 00:02:05]} {[%emt 00:00:05]} 47. Rh8 {[%clk
00:01:31]} a2 {[%clk 00:02:12]} {[%emt 00:00:09]} 48. Ra8 {[%clk 00:01:39]} Rh1
{[%clk 00:02:20]} {[%emt 00:00:04]} 49. Rxa2 {[%clk 00:01:41]} Rxh2+ {[%clk
00:02:29]} {[%emt 00:00:09]} 50. Bf2 {[%clk 00:01:50]} 1-0

[Event "Snabbschacks-SM 2025"]
[Site "Norrköping, Sweden"]
[Date "2025.09.28"]
[Round "8.4"]
[White "Smith, Axel"]
[Black "Bjorklund, Thomas"]
[Result "1-0"]
[TimeControl "25 min + 10 sec/move"]
[WhiteTitle "GM"]
[WhiteElo "2431"]
[BlackElo "2103"]

1. c4 {[%clk 00:25:19]} {[%emt 01:37:19]} Nf6 {[%clk 00:25:16]} {[%emt
00:00:04]} 2. Nc3 {[%clk 00:25:29]} e6 {[%clk 00:25:25]} {[%emt 00:00:02]} 3.
e4 {[%clk 00:25:38]} d5 {[%clk 00:25:34]} {[%emt 00:00:02]} 4. cxd5 {[%clk
00:25:44]} {[%emt 00:00:04]} exd5 {[%clk 00:25:43]} {[%emt 00:00:01]} 5. e5
{[%clk 00:25:52]} Ne4 {[%clk 00:25:51]} {[%emt 00:00:02]} 6. d4 {[%clk
00:25:58]} {[%emt 00:00:04]} c5 {[%clk 00:25:57]} {[%emt 00:00:05]} 7. Nxe4
{[%clk 00:23:17]} {[%emt 00:02:51]} dxe4 {[%clk 00:26:05]} 8. d5 {[%clk
00:23:13]} {[%emt 00:00:14]} Be7 {[%clk 00:25:43]} {[%emt 00:00:32]} 9. Qa4+
{[%clk 00:21:53]} {[%emt 00:01:30]} Bd7 {[%clk 00:25:39]} {[%emt 00:00:14]} 10.
Qxe4 {[%clk 00:21:56]} {[%emt 00:00:07]} O-O {[%clk 00:25:31]} {[%emt
00:00:18]} 11. Nf3 {[%clk 00:15:04]} {[%emt 00:07:03]} Re8 {[%clk 00:25:31]}
{[%emt 00:00:09]} 12. Bd3 {[%clk 00:14:26]} {[%emt 00:00:48]} g6 {[%clk
00:25:31]} {[%emt 00:00:10]} 13. O-O {[%clk 00:13:18]} {[%emt 00:01:18]} Bf6
{[%clk 00:25:24]} {[%emt 00:00:18]} 14. Qf4 {[%clk 00:08:53]} {[%emt 00:04:35]}
Bg7 {[%clk 00:25:26]} {[%emt 00:00:07]} 15. Re1 {[%clk 00:08:58]} {[%emt
00:00:05]} Na6 {[%clk 00:25:26]} {[%emt 00:00:11]} 16. Bd2 {[%clk 00:06:01]}
{[%emt 00:03:07]} Nc7 {[%clk 00:25:12]} {[%emt 00:00:24]} 17. Ng5 {[%clk
00:04:07]} {[%emt 00:02:04]} f6 {[%clk 00:24:19]} {[%emt 00:01:03]} 18. exf6
{[%clk 00:04:16]} {[%emt 00:00:01]} Bxf6 {[%clk 00:24:18]} {[%emt 00:00:10]} 19.
Qh4 {[%clk 00:03:30]} {[%emt 00:00:56]} Bxg5 {[%clk 00:23:59]} {[%emt
00:00:29]} 20. Bxg5 {[%clk 00:03:38]} {[%emt 00:00:03]} Rxe1+ {[%clk 00:24:07]}
{[%emt 00:00:02]} 21. Rxe1 {[%clk 00:03:47]} Qf8 {[%clk 00:24:09]} {[%emt
00:00:08]} 22. Re7 {[%clk 00:02:47]} {[%emt 00:01:10]} Nxd5 {[%clk 00:23:54]}
{[%emt 00:00:26]} 23. Qxh7# {[%emt 00:00:02]} 1-0

[Event "Snabbschacks-SM 2025"]
[Site "Norrköping, Sweden"]
[Date "2025.09.28"]
[Round "9.10"]
[White "Dolata, Henryk"]
[Black "Olsson, Linus"]
[Result "1/2-1/2"]
[TimeControl "25 min + 10 sec/move"]
[BlackTitle "FM"]
[WhiteElo "1943"]
[BlackElo "2166"]

1. e4 {[%clk 00:25:18]} {[%emt 00:00:01]} c5 {[%clk 00:25:17]} {[%emt
00:00:04]} 2. c3 {[%clk 00:25:26]} {[%emt 00:00:02]} d5 {[%clk 00:25:18]}
{[%emt 00:00:08]} 3. exd5 {[%clk 00:25:35]} {[%emt 00:00:02]} Qxd5 {[%clk
00:25:25]} {[%emt 00:00:02]} 4. d4 {[%clk 00:25:44]} cxd4 {[%clk 00:25:30]}
{[%emt 00:00:07]} 5. cxd4 {[%clk 00:25:52]} {[%emt 00:00:01]} Nc6 {[%clk
00:25:36]} {[%emt 00:00:04]} 6. Nf3 {[%clk 00:26:01]} e5 {[%clk 00:25:42]}
{[%emt 00:00:04]} 7. Be3 {[%clk 00:25:42]} {[%emt 00:00:28]} e4 {[%clk
00:23:38]} {[%emt 00:02:15]} 8. Nc3 {[%clk 00:25:40]} {[%emt 00:00:13]} Bb4
{[%clk 00:23:07]} {[%emt 00:00:41]} 9. Nd2 {[%clk 00:25:13]} {[%emt 00:00:36]}
Bxc3 {[%clk 00:22:42]} {[%emt 00:00:36]} 10. bxc3 {[%clk 00:25:21]} {[%emt
00:00:01]} Nf6 {[%clk 00:22:03]} {[%emt 00:00:50]} 11. Bc4 {[%clk 00:24:23]}
{[%emt 00:01:07]} Qf5 {[%clk 00:21:53]} {[%emt 00:00:20]} 12. h3 {[%clk
00:23:33]} {[%emt 00:01:00]} O-O {[%clk 00:21:09]} {[%emt 00:00:55]} 13. O-O
{[%clk 00:23:35]} {[%emt 00:00:07]} Be6 {[%clk 00:18:56]} {[%emt 00:02:24]} 14.
Bxe6 {[%clk 00:19:06]} {[%emt 00:04:39]} Qxe6 {[%clk 00:18:32]} {[%emt
00:00:33]} 15. Qb3 {[%clk 00:16:51]} {[%emt 00:02:26]} Nd5 {[%clk 00:15:06]}
{[%emt 00:03:36]} 16. c4 {[%clk 00:15:24]} {[%emt 00:01:37]} Nxe3 {[%clk
00:14:56]} {[%emt 00:00:19]} 17. Qxe3 {[%clk 00:14:53]} {[%emt 00:00:41]} Na5
{[%clk 00:12:52]} {[%emt 00:02:15]} 18. Rac1 {[%clk 00:14:08]} {[%emt
00:00:55]} Rae8 {[%clk 00:10:07]} {[%emt 00:02:54]} 19. d5 {[%clk 00:12:51]}
{[%emt 00:01:28]} Qa6 {[%clk 00:04:13]} {[%emt 00:06:04]} 20. Qd4 {[%clk
00:08:49]} {[%emt 00:04:11]} f5 {[%clk 00:03:26]} {[%emt 00:00:58]} 21. c5
{[%clk 00:07:14]} {[%emt 00:01:45]} Rd8 {[%clk 00:03:26]} {[%emt 00:00:10]} 22.
Rfd1 {[%clk 00:05:52]} {[%emt 00:01:32]} Rf7 {[%clk 00:02:46]} {[%emt
00:00:50]} 23. Nf1 {[%clk 00:02:38]} {[%emt 00:03:24]} Nc6 {[%clk 00:02:24]}
{[%emt 00:00:32]} 24. Qc3 {[%clk 00:02:41]} {[%emt 00:00:05]} Ne7 {[%clk
00:01:36]} {[%emt 00:00:59]} 25. Qb3 {[%clk 00:02:41]} {[%emt 00:00:11]} Kf8
{[%clk 00:01:16]} {[%emt 00:00:30]} 26. Ne3 {[%clk 00:02:08]} {[%emt 00:00:42]}
Ng6 {[%clk 00:01:15]} {[%emt 00:00:11]} 27. Nc4 {[%clk 00:01:43]} {[%emt
00:00:36]} Nf4 {[%clk 00:01:13]} {[%emt 00:00:12]} 28. Rd2 {[%clk 00:00:45]}
{[%emt 00:01:08]} Nd3 {[%clk 00:00:43]} {[%emt 00:00:39]} 29. Rxd3 {[%clk
00:00:53]} {[%emt 00:00:02]} exd3 {[%clk 00:00:51]} {[%emt 00:00:02]} 30. Qxd3
{[%clk 00:01:02]} {[%emt 00:00:01]} Qxa2 {[%clk 00:00:44]} {[%emt 00:00:17]} 31.
Nd6 {[%clk 00:01:00]} {[%emt 00:00:12]} Rf6 {[%clk 00:00:46]} {[%emt 00:00:08]}
32. Rd1 {[%clk 00:00:45]} {[%emt 00:00:25]} Qb2 {[%clk 00:00:13]} {[%emt
00:00:44]} 33. Rb1 {[%clk 00:00:32]} {[%emt 00:00:23]} Qe5 {[%clk 00:00:19]}
{[%emt 00:00:04]} 34. Rxb7 {[%clk 00:00:34]} {[%emt 00:00:07]} Rfxd6 {[%clk
00:00:20]} {[%emt 00:00:09]} 35. cxd6 {[%clk 00:00:42]} {[%emt 00:00:02]} Rxd6
{[%clk 00:00:27]} {[%emt 00:00:03]} 36. Rxa7 {[%clk 00:00:16]} {[%emt
00:00:36]} Rxd5 {[%clk 00:00:27]} {[%emt 00:00:11]} 37. Qf1 {[%clk 00:00:23]}
{[%emt 00:00:02]} Qd6 {[%clk 00:00:28]} {[%emt 00:00:09]} 38. Ra1 {[%clk
00:00:31]} {[%emt 00:00:02]} h6 {[%clk 00:00:35]} {[%emt 00:00:03]} 1/2-1/2

[Event "Snabbschacks-SM 2025"]
[Site "Norrköping, Sweden"]
[Date "2025.09.28"]
[Round "8.5"]
[White "Lilliehook, Victor"]
[Black "Religa, Marek"]
[Result "0-1"]
[TimeControl "25 min + 10 sec/move"]
[WhiteElo "2136"]
[BlackElo "2207"]

1. e4 {[%clk 00:25:19]} {[%emt 01:41:11]} c5 {[%clk 00:25:12]} {[%emt
00:00:09]} 2. Nf3 {[%clk 00:25:21]} {[%emt 00:00:08]} Nf6 {[%clk 00:25:21]}
{[%emt 00:00:02]} 3. e5 {[%clk 00:25:05]} {[%emt 00:00:25]} Nd5 {[%clk
00:25:30]} {[%emt 00:00:02]} 4. Nc3 {[%clk 00:25:06]} {[%emt 00:00:08]} e6
{[%clk 00:25:39]} 5. Nxd5 {[%clk 00:24:41]} {[%emt 00:00:35]} exd5 {[%clk
00:25:48]} {[%emt 00:00:02]} 6. d4 {[%clk 00:24:33]} {[%emt 00:00:17]} Nc6
{[%clk 00:25:57]} 7. c3 {[%clk 00:22:28]} {[%emt 00:02:16]} cxd4 {[%clk
00:26:05]} {[%emt 00:00:03]} 8. cxd4 {[%clk 00:22:04]} {[%emt 00:00:33]} d6
{[%clk 00:26:14]} 9. Bd3 {[%clk 00:20:44]} {[%emt 00:01:31]} dxe5 {[%clk
00:26:22]} {[%emt 00:00:02]} 10. dxe5 {[%clk 00:20:45]} {[%emt 00:00:09]} Bb4+
{[%clk 00:26:31]} {[%emt 00:00:01]} 11. Bd2 {[%clk 00:20:46]} {[%emt 00:00:09]}
Qa5 {[%clk 00:26:20]} {[%emt 00:00:21]} 12. O-O {[%clk 00:19:45]} {[%emt
00:01:11]} Bg4 {[%clk 00:25:17]} {[%emt 00:01:14]} 13. Bxb4 {[%clk 00:16:37]}
{[%emt 00:03:17]} Qxb4 {[%clk 00:25:07]} {[%emt 00:00:21]} 14. Re1 {[%clk
00:15:46]} {[%emt 00:01:00]} O-O {[%clk 00:23:50]} {[%emt 00:01:27]} 15. a3
{[%clk 00:13:45]} {[%emt 00:02:11]} Qf4 {[%clk 00:23:45]} {[%emt 00:00:16]} 16.
Qd2 {[%clk 00:13:00]} {[%emt 00:00:54]} Qxd2 {[%clk 00:23:53]} {[%emt
00:00:02]} 17. Nxd2 {[%clk 00:13:09]} Rae8 {[%clk 00:19:54]} {[%emt 00:04:09]}
18. h3 {[%clk 00:11:38]} {[%emt 00:01:41]} Bd7 {[%clk 00:19:50]} {[%emt
00:00:15]} 19. f4 {[%clk 00:10:55]} {[%emt 00:00:51]} g5 {[%clk 00:19:36]}
{[%emt 00:00:25]} 20. fxg5 {[%clk 00:08:24]} {[%emt 00:02:41]} Nxe5 {[%clk
00:19:44]} {[%emt 00:00:02]} 21. Bc2 {[%clk 00:07:51]} {[%emt 00:00:44]} Re7
{[%clk 00:19:00]} {[%emt 00:00:54]} 22. Nf3 {[%clk 00:04:54]} {[%emt 00:03:06]}
Rfe8 {[%clk 00:18:49]} {[%emt 00:00:22]} 23. Nd4 {[%clk 00:04:03]} {[%emt
00:01:01]} Kg7 {[%clk 00:17:05]} {[%emt 00:01:55]} 24. Kf2 {[%clk 00:03:41]}
{[%emt 00:00:32]} f6 {[%clk 00:16:30]} {[%emt 00:00:45]} 25. gxf6+ {[%clk
00:03:40]} Kxf6 {[%clk 00:16:39]} 26. Re2 {[%clk 00:02:02]} {[%emt 00:01:49]}
Bb5 {[%clk 00:15:58]} {[%emt 00:00:51]} 27. Ree1 {[%clk 00:01:38]} {[%emt
00:00:34]} Bd7 {[%clk 00:15:14]} {[%emt 00:00:54]} 28. Re2 {[%clk 00:01:33]}
{[%emt 00:00:15]} Bb5 {[%clk 00:12:36]} {[%emt 00:02:48]} 29. Ree1 {[%clk
00:01:42]} {[%emt 00:00:01]} Nd3+ {[%clk 00:12:16]} {[%emt 00:00:29]} 30. Bxd3
{[%clk 00:01:50]} {[%emt 00:00:02]} Bxd3 {[%clk 00:12:21]} {[%emt 00:00:06]} 31.
Rxe7 {[%clk 00:01:39]} {[%emt 00:00:20]} Rxe7 {[%clk 00:12:30]} {[%emt
00:00:01]} 32. Rd1 {[%clk 00:01:22]} {[%emt 00:00:26]} Be4 {[%clk 00:12:12]}
{[%emt 00:00:29]} 33. Nb5 {[%clk 00:00:47]} {[%emt 00:00:44]} Ke5 {[%emt
00:02:09]} 34. Nxa7 {[%clk 00:00:29]} {[%emt 00:00:27]} Rf7+ {[%clk 00:08:18]}
{[%emt 00:02:07]} 35. Kg1 {[%clk 00:00:35]} {[%emt 00:00:03]} d4 {[%clk
00:07:41]} {[%emt 00:00:48]} 36. Nb5 {[%clk 00:00:39]} {[%emt 00:00:06]} Rd7
{[%clk 00:07:40]} {[%emt 00:00:11]} 37. Kf2 {[%clk 00:00:23]} {[%emt 00:00:26]}
Bc2 {[%clk 00:05:42]} {[%emt 00:02:08]} 38. Rd2 {[%clk 00:00:28]} {[%emt
00:00:05]} Ba4 {[%clk 00:05:32]} {[%emt 00:00:20]} 39. Na7 {[%clk 00:00:14]}
{[%emt 00:00:24]} Rc7 {[%clk 00:05:01]} {[%emt 00:00:42]} 40. Rd3 {[%clk
00:00:11]} {[%emt 00:00:13]} b6 {[%clk 00:04:27]} {[%emt 00:00:43]} 41. b3
{[%clk 00:00:12]} {[%emt 00:00:09]} Bd7 {[%clk 00:04:27]} {[%emt 00:00:10]} 42.
Rg3 {[%clk 00:00:13]} {[%emt 00:00:08]} Rxa7 {[%clk 00:04:24]} {[%emt
00:00:15]} 43. Rg7 {[%clk 00:00:22]} Kd6 {[%clk 00:03:31]} {[%emt 00:01:03]} 44.
a4 {[%clk 00:00:28]} {[%emt 00:00:04]} Rc7 {[%clk 00:03:24]} {[%emt 00:00:17]}
45. Rxh7 {[%clk 00:00:32]} {[%emt 00:00:06]} Rc2+ {[%clk 00:03:31]} {[%emt
00:00:04]} 46. Kf1 {[%clk 00:00:22]} {[%emt 00:00:19]} Be6 {[%clk 00:03:03]}
{[%emt 00:00:38]} 47. Rh4 {[%clk 00:00:19]} {[%emt 00:00:13]} Ke5 {[%clk
00:02:58]} {[%emt 00:00:16]} 48. Rh5+ {[%clk 00:00:22]} {[%emt 00:00:07]} Ke4
{[%clk 00:02:57]} {[%emt 00:00:10]} 49. Rh6 {[%clk 00:00:18]} {[%emt 00:00:13]}
Bd5 {[%clk 00:02:42]} {[%emt 00:00:26]} 50. Rxb6 {[%clk 00:00:20]} {[%emt
00:00:08]} Ke3 {[%clk 00:02:47]} {[%emt 00:00:05]} 51. Kg1 {[%clk 00:00:13]}
{[%emt 00:00:17]} Rxg2+ {[%clk 00:02:50]} {[%emt 00:00:07]} 52. Kf1 {[%clk
00:00:22]} Rb2 {[%clk 00:02:51]} {[%emt 00:00:09]} 53. Kg1 {[%clk 00:00:18]}
{[%emt 00:00:15]} d3 {[%clk 00:02:52]} {[%emt 00:00:09]} 54. Rd6 {[%clk
00:00:17]} {[%emt 00:00:11]} Bxb3 {[%clk 00:02:33]} {[%emt 00:00:29]} 55. a5
{[%clk 00:00:16]} {[%emt 00:00:11]} d2 {[%clk 00:02:29]} {[%emt 00:00:14]} 56.
a6 {[%clk 00:00:13]} {[%emt 00:00:13]} d1=Q+ {[%clk 00:02:24]} {[%emt
00:00:15]} 57. Rxd1 {[%clk 00:00:20]} {[%emt 00:00:04]} Bxd1 {[%clk 00:02:32]}
58. a7 {[%clk 00:00:29]} {[%emt 00:00:01]} Ra2 {[%clk 00:02:35]} {[%emt
00:00:07]} 0-1